[Event "Titled Tuesday Blitz June 1 2021"]
[White "Rostovtsev, Dmitry"]
[Black "Visakh N R"]
[WhiteFideId "34278320"]
[BlackFideId "25012223"]
[WhiteElo "2143"]
[BlackElo "2428"]
[Result "0-1"]
[Round "04"]
[TimeControl "180+1"]
[Date "2021.06.01"]
[WhiteClock "0:00:06"]
[BlackClock "0:00:38"]

1. e4 {[%clk 0:03:00]}  c5 {[%clk 0:02:58]} 2. Nf3 {[%clk 0:03:00]}  Nc6 {[%clk 0:02:58]} 3. d4 {[%clk 0:03:00]}  cxd4 {[%clk 0:02:59]} 4. Nxd4 {[%clk 0:03:01]}  Nf6 {[%clk 0:03:00]} 5. Nc3 {[%clk 0:03:01]}  e5 {[%clk 0:03:00]} 6. Ndb5 {[%clk 0:03:01]}  d6 {[%clk 0:03:01]} 7. Nd5 {[%clk 0:03:01]}  Nxd5 {[%clk 0:03:00]} 8. exd5 {[%clk 0:03:02]}  Nb8 {[%clk 0:02:59]} 9. Qf3 {[%clk 0:03:01]}  a6 {[%clk 0:02:52]} 10. Qa3 {[%clk 0:02:46]}  Be7 {[%clk 0:02:43]} 11. Bg5 {[%clk 0:02:45]}  f6 {[%clk 0:02:21]} 12. Bd2 {[%clk 0:02:41]}  O-O {[%clk 0:02:20]} 13. Bb4 {[%clk 0:02:37]}  axb5 {[%clk 0:02:13]} 14. Qxa8 {[%clk 0:02:32]}  Na6 {[%clk 0:02:14]} 15. Bd2 {[%clk 0:02:31]}  Qb6 {[%clk 0:02:13]} 16. Be3 {[%clk 0:02:27]}  Qa5+ {[%clk 0:02:13]} 17. Bd2 {[%clk 0:02:27]}  Qa4 {[%clk 0:01:57]} 18. Qa7 {[%clk 0:02:10]}  Qxc2 {[%clk 0:01:56]} 19. Qe3 {[%clk 0:01:37]}  Qxb2 {[%clk 0:01:32]} 20. Qc3 {[%clk 0:01:29]}  Qxc3 {[%clk 0:01:28]} 21. Bxc3 {[%clk 0:01:30]}  Bd7 {[%clk 0:01:25]} 22. Rb1 {[%clk 0:01:26]}  Nc7 {[%clk 0:01:24]} 23. Ba5 {[%clk 0:01:17]}  Nxd5 {[%clk 0:01:20]} 24. Bxb5 {[%clk 0:01:16]}  Be6 {[%clk 0:01:18]} 25. Bc4 {[%clk 0:01:11]}  Ra8 {[%clk 0:01:16]} 26. Bd2 {[%clk 0:01:07]}  Ra4 {[%clk 0:01:13]} 27. Bb3 {[%clk 0:01:02]}  Re4+ {[%clk 0:01:10]} 28. Kf1 {[%clk 0:00:35]}  Kf7 {[%clk 0:01:10]} 29. f3 {[%clk 0:00:35]}  Rd4 {[%clk 0:01:10]} 30. Ke2 {[%clk 0:00:33]}  b5 {[%clk 0:01:10]} 31. Rhd1 {[%clk 0:00:21]}  b4 {[%clk 0:01:08]} 32. Be1 {[%clk 0:00:21]}  Nf4+ {[%clk 0:01:07]} 33. Kf2 {[%clk 0:00:20]}  Nd3+ {[%clk 0:01:03]} 34. Ke3 {[%clk 0:00:20]}  Nxe1 {[%clk 0:01:02]} 35. Bxe6+ {[%clk 0:00:08]}  Kxe6 {[%clk 0:01:01]} 36. Rxe1 {[%clk 0:00:08]}  f5 {[%clk 0:00:54]} 37. Rb2 {[%clk 0:00:07]}  Rc4 {[%clk 0:00:50]} 38. Reb1 {[%clk 0:00:05]}  d5 {[%clk 0:00:50]} 39. Ke2 {[%clk 0:00:06]}  e4 {[%clk 0:00:50]} 40. f4 {[%clk 0:00:05]}  d4 {[%clk 0:00:50]} 41. g3 {[%clk 0:00:06]}  d3+ {[%clk 0:00:50]} 42. Kd2 {[%clk 0:00:07]}  Bf6 {[%clk 0:00:48]} 43. Rb3 {[%clk 0:00:07]}  Rc2+ {[%clk 0:00:45]} 44. Kd1 {[%clk 0:00:06]}  Bc3 {[%clk 0:00:39]} 45. a4 {[%clk 0:00:06]}  e3 {[%clk 0:00:38]} 0-1


[Site "https://www.chess.com"]

[Event "Titled Tuesday Blitz June 1 2021"]
[White "Rychagov, Andrey"]
[Black "Remolar Gallen, Jose"]
[WhiteFideId "4119932"]
[BlackFideId "2215187"]
[WhiteElo "2527"]
[BlackElo "2203"]
[Result "0-1"]
[Round "04"]
[TimeControl "180+1"]
[Date "2021.06.01"]
[WhiteClock "0:00:03"]
[BlackClock "0:00:13"]

1. d4 {[%clk 0:03:00]}  Nf6 {[%clk 0:02:59]} 2. c4 {[%clk 0:03:00]}  g6 {[%clk 0:02:55]} 3. Nf3 {[%clk 0:03:00]}  Bg7 {[%clk 0:02:55]} 4. Nc3 {[%clk 0:03:00]}  d6 {[%clk 0:02:56]} 5. e4 {[%clk 0:03:00]}  O-O {[%clk 0:02:56]} 6. Be2 {[%clk 0:03:00]}  e5 {[%clk 0:02:56]} 7. Be3 {[%clk 0:03:00]}  Ng4 {[%clk 0:02:55]} 8. Bg5 {[%clk 0:03:00]}  f6 {[%clk 0:02:55]} 9. Bh4 {[%clk 0:03:00]}  g5 {[%clk 0:02:56]} 10. Bg3 {[%clk 0:03:00]}  Nh6 {[%clk 0:02:56]} 11. dxe5 {[%clk 0:02:51]}  dxe5 {[%clk 0:02:52]} 12. Qd5+ {[%clk 0:02:49]}  Nf7 {[%clk 0:02:40]} 13. O-O-O {[%clk 0:02:45]}  Qe7 {[%clk 0:02:37]} 14. c5 {[%clk 0:02:27]}  Be6 {[%clk 0:02:33]} 15. Qxb7 {[%clk 0:02:24]}  Nd7 {[%clk 0:02:28]} 16. c6 {[%clk 0:02:05]}  Nc5 {[%clk 0:01:51]} 17. Qb4 {[%clk 0:02:05]}  Rfb8 {[%clk 0:01:51]} 18. Qa3 {[%clk 0:02:05]}  Rb6 {[%clk 0:01:47]} 19. Nd5 {[%clk 0:01:56]}  Bxd5 {[%clk 0:01:43]} 20. exd5 {[%clk 0:01:54]}  Rab8 {[%clk 0:01:42]} 21. Rd2 {[%clk 0:01:50]}  f5 {[%clk 0:01:03]} 22. Rc2 {[%clk 0:01:40]}  Rxb2 {[%clk 0:00:56]} 23. Qxc5 {[%clk 0:00:52]}  Qxc5 {[%clk 0:00:36]} 24. Rxc5 {[%clk 0:00:51]}  Rxe2 {[%clk 0:00:29]} 25. h4 {[%clk 0:00:35]}  f4 {[%clk 0:00:24]} 26. Bh2 {[%clk 0:00:26]}  Rbb2 {[%clk 0:00:18]} 27. Rd1 {[%clk 0:00:16]}  Rxa2 {[%clk 0:00:17]} 28. Nd2 {[%clk 0:00:16]}  e4 {[%clk 0:00:16]} 29. hxg5 {[%clk 0:00:14]}  e3 {[%clk 0:00:15]} 30. fxe3 {[%clk 0:00:11]}  fxe3 {[%clk 0:00:16]} 31. Nb3 {[%clk 0:00:11]}  Bb2+ {[%clk 0:00:12]} 32. Kb1 {[%clk 0:00:10]}  Ba3 {[%clk 0:00:13]} 33. Rb5 {[%clk 0:00:03]}  Reb2+ {[%clk 0:00:12]} 34. Kc1 {[%clk 0:00:03]}  Rxb3# {[%clk 0:00:13]} 0-1


[Site "https://www.chess.com"]

[Event "Titled Tuesday Blitz June 1 2021"]
[White "Samsonkin, Artiom"]
[Black "Fayzullaev, Akmal"]
[WhiteFideId "13503111"]
[BlackFideId "14200554"]
[WhiteElo "2513"]
[BlackElo "2264"]
[Result "0-1"]
[Round "04"]
[TimeControl "180+1"]
[Date "2021.06.01"]
[WhiteClock "0:00:04"]
[BlackClock "0:00:37"]

1. e4 {[%clk 0:03:00]}  e5 {[%clk 0:02:58]} 2. Nf3 {[%clk 0:03:00]}  Nc6 {[%clk 0:02:59]} 3. d4 {[%clk 0:03:01]}  exd4 {[%clk 0:02:59]} 4. Bc4 {[%clk 0:03:01]}  Bc5 {[%clk 0:02:58]} 5. Ng5 {[%clk 0:03:01]}  Nh6 {[%clk 0:02:57]} 6. Nxf7 {[%clk 0:03:02]}  Nxf7 {[%clk 0:02:58]} 7. Bxf7+ {[%clk 0:03:02]}  Kxf7 {[%clk 0:02:58]} 8. Qh5+ {[%clk 0:03:03]}  g6 {[%clk 0:02:59]} 9. Qxc5 {[%clk 0:03:03]}  d5 {[%clk 0:03:00]} 10. O-O {[%clk 0:03:03]}  dxe4 {[%clk 0:02:58]} 11. c3 {[%clk 0:03:03]}  Re8 {[%clk 0:02:51]} 12. cxd4 {[%clk 0:03:02]}  Qxd4 {[%clk 0:02:49]} 13. Qg5 {[%clk 0:02:58]}  Qe5 {[%clk 0:02:45]} 14. Qh4 {[%clk 0:02:56]}  Kg8 {[%clk 0:02:45]} 15. Nc3 {[%clk 0:02:55]}  Bf5 {[%clk 0:02:45]} 16. Bf4 {[%clk 0:02:36]}  Qa5 {[%clk 0:02:34]} 17. Rad1 {[%clk 0:02:25]}  Rad8 {[%clk 0:02:33]} 18. Bg5 {[%clk 0:02:04]}  Rd3 {[%clk 0:02:27]} 19. Rfe1 {[%clk 0:01:53]}  Ne5 {[%clk 0:02:02]} 20. Bf6 {[%clk 0:01:36]}  Rxd1 {[%clk 0:01:57]} 21. Rxd1 {[%clk 0:01:36]}  Ng4 {[%clk 0:01:56]} 22. Bg5 {[%clk 0:01:25]}  e3 {[%clk 0:01:32]} 23. Bxe3 {[%clk 0:00:55]}  Nxe3 {[%clk 0:01:23]} 24. fxe3 {[%clk 0:00:56]}  Qe5 {[%clk 0:01:23]} 25. Nd5 {[%clk 0:00:47]}  Kg7 {[%clk 0:01:19]} 26. Qd4 {[%clk 0:00:18]}  c6 {[%clk 0:01:11]} 27. Nc3 {[%clk 0:00:18]}  Kf7 {[%clk 0:00:56]} 28. Qxe5 {[%clk 0:00:18]}  Rxe5 {[%clk 0:00:57]} 29. Kf2 {[%clk 0:00:19]}  b5 {[%clk 0:00:52]} 30. Rd4 {[%clk 0:00:19]}  a5 {[%clk 0:00:52]} 31. a3 {[%clk 0:00:19]}  Ke7 {[%clk 0:00:49]} 32. g4 {[%clk 0:00:19]}  Bc8 {[%clk 0:00:48]} 33. Re4 {[%clk 0:00:20]}  Rxe4 {[%clk 0:00:47]} 34. Nxe4 {[%clk 0:00:20]}  Bxg4 {[%clk 0:00:47]} 35. Kg3 {[%clk 0:00:20]}  Bf5 {[%clk 0:00:47]} 36. Nc3 {[%clk 0:00:14]}  h6 {[%clk 0:00:46]} 37. Kf4 {[%clk 0:00:14]}  Kf6 {[%clk 0:00:45]} 38. e4 {[%clk 0:00:12]}  g5+ {[%clk 0:00:45]} 39. Ke3 {[%clk 0:00:12]}  Bg6 {[%clk 0:00:43]} 40. Kd4 {[%clk 0:00:13]}  Ke6 {[%clk 0:00:44]} 41. Kc5 {[%clk 0:00:13]}  Kd7 {[%clk 0:00:44]} 42. e5 {[%clk 0:00:14]}  Bf5 {[%clk 0:00:44]} 43. Ne2 {[%clk 0:00:14]}  h5 {[%clk 0:00:40]} 44. Nd4 {[%clk 0:00:15]}  Be4 {[%clk 0:00:37]} 45. b4 {[%clk 0:00:07]}  axb4 {[%clk 0:00:37]} 46. axb4 {[%clk 0:00:08]}  g4 {[%clk 0:00:38]} 47. Ne2 {[%clk 0:00:08]}  h4 {[%clk 0:00:37]} 48. Nf4 {[%clk 0:00:08]}  g3 {[%clk 0:00:36]} 49. hxg3 {[%clk 0:00:09]}  hxg3 {[%clk 0:00:36]} 50. e6+ {[%clk 0:00:08]}  Ke7 {[%clk 0:00:36]} 51. Kd4 {[%clk 0:00:09]}  g2 {[%clk 0:00:35]} 52. Ne2 {[%clk 0:00:09]}  Bf3 {[%clk 0:00:35]} 53. Ng1 {[%clk 0:00:09]}  Bd5 {[%clk 0:00:36]} 54. Ke5 {[%clk 0:00:10]}  Bxe6 {[%clk 0:00:36]} 55. Ne2 {[%clk 0:00:10]}  Bd5 {[%clk 0:00:37]} 56. Ng1 {[%clk 0:00:10]}  Kf7 {[%clk 0:00:38]} 57. Ne2 {[%clk 0:00:10]}  Kg6 {[%clk 0:00:38]} 58. Kf4 {[%clk 0:00:09]}  Kh5 {[%clk 0:00:38]} 59. Kg3 {[%clk 0:00:07]}  Kg5 {[%clk 0:00:38]} 60. Kf2 {[%clk 0:00:05]}  Kf5 {[%clk 0:00:38]} 61. Ke3 {[%clk 0:00:02]}  Ke5 {[%clk 0:00:39]} 62. Kf2 {[%clk 0:00:03]}  Bc4 {[%clk 0:00:38]} 63. Nc3 {[%clk 0:00:03]}  Kd4 {[%clk 0:00:37]} 64. Nd1 {[%clk 0:00:04]}  Bd5 {[%clk 0:00:37]} 65. Ne3 {[%clk 0:00:04]}  g1=Q+ {[%clk 0:00:37]} 0-1


[Site "https://www.chess.com"]

[Event "Titled Tuesday Blitz June 1 2021"]
[White "Sargsyan, Anna M."]
[Black "Jobava, Baadur"]
[WhiteFideId "13308130"]
[BlackFideId "13601520"]
[WhiteElo "2263"]
[BlackElo "2748"]
[Result "1-0"]
[Round "04"]
[TimeControl "180+1"]
[Date "2021.06.01"]
[WhiteClock "0:00:12"]
[BlackClock "0:01:26"]

1. e4 {[%clk 0:03:00]}  e5 {[%clk 0:02:58]} 2. Nf3 {[%clk 0:03:00]}  Nf6 {[%clk 0:02:59]} 3. Nc3 {[%clk 0:02:56]}  d6 {[%clk 0:02:59]} 4. d4 {[%clk 0:02:55]}  Nbd7 {[%clk 0:02:59]} 5. Bd3 {[%clk 0:02:55]}  Be7 {[%clk 0:02:57]} 6. O-O {[%clk 0:02:55]}  O-O {[%clk 0:02:58]} 7. Re1 {[%clk 0:02:55]}  Re8 {[%clk 0:02:58]} 8. h3 {[%clk 0:02:55]}  c6 {[%clk 0:02:59]} 9. Bg5 {[%clk 0:02:52]}  h6 {[%clk 0:02:58]} 10. Bh4 {[%clk 0:02:52]}  Nh5 {[%clk 0:02:55]} 11. Bxe7 {[%clk 0:02:49]}  Qxe7 {[%clk 0:02:56]} 12. Bf1 {[%clk 0:02:15]}  Nhf6 {[%clk 0:02:50]} 13. Qd2 {[%clk 0:02:11]}  Nf8 {[%clk 0:02:49]} 14. Rad1 {[%clk 0:02:10]}  Ng6 {[%clk 0:02:49]} 15. a3 {[%clk 0:02:03]}  Be6 {[%clk 0:02:49]} 16. g3 {[%clk 0:01:52]}  Rad8 {[%clk 0:02:46]} 17. Bg2 {[%clk 0:01:49]}  Bc8 {[%clk 0:02:42]} 18. Qc1 {[%clk 0:01:46]}  h5 {[%clk 0:02:39]} 19. Qg5 {[%clk 0:01:40]}  Nf8 {[%clk 0:02:27]} 20. dxe5 {[%clk 0:01:18]}  dxe5 {[%clk 0:02:28]} 21. Rxd8 {[%clk 0:01:18]}  Qxd8 {[%clk 0:02:29]} 22. Rd1 {[%clk 0:00:59]}  Qe7 {[%clk 0:02:29]} 23. Qd2 {[%clk 0:00:46]}  Ng6 {[%clk 0:02:26]} 24. Qg5 {[%clk 0:00:45]}  b6 {[%clk 0:02:26]} 25. Bf1 {[%clk 0:00:44]}  Nf8 {[%clk 0:02:23]} 26. Qd2 {[%clk 0:00:42]}  N6d7 {[%clk 0:02:16]} 27. Qd6 {[%clk 0:00:39]}  Ne6 {[%clk 0:02:06]} 28. Qxc6 {[%clk 0:00:36]}  Qf6 {[%clk 0:01:55]} 29. Bg2 {[%clk 0:00:33]}  Nec5 {[%clk 0:01:34]} 30. Rd6 {[%clk 0:00:32]}  Qe7 {[%clk 0:01:28]} 31. Nd5 {[%clk 0:00:31]}  Qf8 {[%clk 0:01:28]} 32. Qc7 {[%clk 0:00:20]}  Ne6 {[%clk 0:01:27]} 33. Qc6 {[%clk 0:00:17]}  Ndc5 {[%clk 0:01:27]} 34. Nc7 {[%clk 0:00:13]}  Bb7 {[%clk 0:01:26]} 35. Qxe8 {[%clk 0:00:12]} 1-0


[Site "https://www.chess.com"]

[Event "Titled Tuesday Blitz June 1 2021"]
[White "Senthil Maran K"]
[Black "Lovkov, Roman"]
[WhiteFideId "25035681"]
[BlackFideId "4157389"]
[WhiteElo "2194"]
[BlackElo "2387"]
[Result "0-1"]
[Round "04"]
[TimeControl "180+1"]
[Date "2021.06.01"]
[WhiteClock "0:00:04"]
[BlackClock "0:01:07"]

1. d4 {[%clk 0:03:00]}  Nf6 {[%clk 0:02:59]} 2. c4 {[%clk 0:02:59]}  g6 {[%clk 0:03:00]} 3. g3 {[%clk 0:02:59]}  Bg7 {[%clk 0:03:00]} 4. Bg2 {[%clk 0:03:00]}  d5 {[%clk 0:03:00]} 5. cxd5 {[%clk 0:02:59]}  Nxd5 {[%clk 0:03:01]} 6. Nf3 {[%clk 0:03:00]}  O-O {[%clk 0:03:01]} 7. O-O {[%clk 0:03:00]}  Nb6 {[%clk 0:03:02]} 8. Nc3 {[%clk 0:03:01]}  Nc6 {[%clk 0:03:02]} 9. d5 {[%clk 0:03:01]}  Na5 {[%clk 0:03:00]} 10. Qc2 {[%clk 0:03:01]}  c6 {[%clk 0:02:52]} 11. dxc6 {[%clk 0:03:00]}  Nxc6 {[%clk 0:02:53]} 12. Rd1 {[%clk 0:03:00]}  Bd7 {[%clk 0:02:53]} 13. Bf4 {[%clk 0:02:43]}  Qc8 {[%clk 0:02:53]} 14. Rac1 {[%clk 0:02:27]}  Bf5 {[%clk 0:02:52]} 15. Qb3 {[%clk 0:02:20]}  Rd8 {[%clk 0:02:34]} 16. Nb5 {[%clk 0:02:00]}  Be6 {[%clk 0:02:22]} 17. Qc2 {[%clk 0:01:17]}  Nd5 {[%clk 0:02:05]} 18. a3 {[%clk 0:00:25]}  a6 {[%clk 0:01:55]} 19. Nc3 {[%clk 0:00:10]}  Nxc3 {[%clk 0:01:45]} 20. bxc3 {[%clk 0:00:10]}  Rxd1+ {[%clk 0:01:40]} 21. Rxd1 {[%clk 0:00:10]}  Na5 {[%clk 0:01:37]} 22. Nd4 {[%clk 0:00:07]}  Bd7 {[%clk 0:01:13]} 23. Bg5 {[%clk 0:00:05]}  e5 {[%clk 0:01:07]} 24. Nf3 {[%clk 0:00:04]}  Be6 {[%clk 0:01:07]} 0-1


[Site "https://www.chess.com"]

[Event "Titled Tuesday Blitz June 1 2021"]
[White "Szente Varga, Fruzsina"]
[Black "Janaszak, Dawid"]
[WhiteFideId "712264"]
[BlackFideId "1119206"]
[WhiteElo "2106"]
[BlackElo "2332"]
[Result "1-0"]
[Round "04"]
[TimeControl "180+1"]
[Date "2021.06.01"]
[WhiteClock "0:00:16"]
[BlackClock "0:00:22"]

1. e4 {[%clk 0:03:00]}  c6 {[%clk 0:03:00]} 2. d4 {[%clk 0:03:00]}  d5 {[%clk 0:03:00]} 3. Nc3 {[%clk 0:03:00]}  dxe4 {[%clk 0:03:00]} 4. Nxe4 {[%clk 0:03:01]}  Nf6 {[%clk 0:03:00]} 5. Nxf6+ {[%clk 0:03:01]}  exf6 {[%clk 0:03:01]} 6. Be3 {[%clk 0:03:02]}  Bd6 {[%clk 0:02:59]} 7. Qd2 {[%clk 0:03:03]}  O-O {[%clk 0:02:57]} 8. O-O-O {[%clk 0:03:03]}  b5 {[%clk 0:02:56]} 9. Bf4 {[%clk 0:03:00]}  Be6 {[%clk 0:02:52]} 10. Kb1 {[%clk 0:02:58]}  Bxf4 {[%clk 0:02:49]} 11. Qxf4 {[%clk 0:02:59]}  Qd5 {[%clk 0:02:46]} 12. b3 {[%clk 0:02:57]}  a5 {[%clk 0:02:45]} 13. Ne2 {[%clk 0:02:50]}  a4 {[%clk 0:02:36]} 14. Nc3 {[%clk 0:02:50]}  Qd7 {[%clk 0:02:36]} 15. d5 {[%clk 0:02:44]}  cxd5 {[%clk 0:02:31]} 16. Bxb5 {[%clk 0:02:43]}  Qc8 {[%clk 0:02:13]} 17. Nxd5 {[%clk 0:01:54]}  Qc5 {[%clk 0:01:52]} 18. Bc4 {[%clk 0:01:49]}  axb3 {[%clk 0:01:51]} 19. cxb3 {[%clk 0:01:36]}  Nc6 {[%clk 0:01:50]} 20. Qe3 {[%clk 0:01:19]}  Qa3 {[%clk 0:01:47]} 21. Qe2 {[%clk 0:01:11]}  Ne5 {[%clk 0:01:34]} 22. Bb5 {[%clk 0:00:29]}  Rfb8 {[%clk 0:01:22]} 23. Nc7 {[%clk 0:00:21]}  Bf5+ {[%clk 0:01:17]} 24. Ka1 {[%clk 0:00:19]}  Ra7 {[%clk 0:01:01]} 25. Nd5 {[%clk 0:00:17]}  Rxb5 {[%clk 0:00:30]} 26. Ne7+ {[%clk 0:00:17]}  Kf8 {[%clk 0:00:25]} 27. Nxf5 {[%clk 0:00:16]}  Rxb3 {[%clk 0:00:22]} 28. Rd8# {[%clk 0:00:16]} 1-0


[Site "https://www.chess.com"]

[Event "Titled Tuesday Blitz June 1 2021"]
[White "Tanenbaum, Zachary"]
[Black "Garcia Garcia, Alejandro"]
[WhiteFideId "2060850"]
[BlackFideId "3516334"]
[WhiteElo "2165"]
[BlackElo "2131"]
[Result "1-0"]
[Round "04"]
[TimeControl "180+1"]
[Date "2021.06.01"]
[WhiteClock "0:00:37"]
[BlackClock "0:01:13"]

1. e4 {[%clk 0:03:00]}  c5 {[%clk 0:02:59]} 2. Nf3 {[%clk 0:03:00]}  e6 {[%clk 0:02:59]} 3. d4 {[%clk 0:03:01]}  cxd4 {[%clk 0:03:00]} 4. Nxd4 {[%clk 0:03:01]}  Nc6 {[%clk 0:03:01]} 5. Nc3 {[%clk 0:03:01]}  Nf6 {[%clk 0:03:01]} 6. Ndb5 {[%clk 0:03:00]}  d6 {[%clk 0:03:01]} 7. Bf4 {[%clk 0:02:58]}  e5 {[%clk 0:03:01]} 8. Bg5 {[%clk 0:02:58]}  a6 {[%clk 0:03:02]} 9. Na3 {[%clk 0:02:58]}  b5 {[%clk 0:03:03]} 10. Nd5 {[%clk 0:02:58]}  Be7 {[%clk 0:03:03]} 11. Bxf6 {[%clk 0:02:57]}  Bxf6 {[%clk 0:03:04]} 12. c4 {[%clk 0:02:56]}  b4 {[%clk 0:03:04]} 13. Nc2 {[%clk 0:02:56]}  a5 {[%clk 0:03:05]} 14. Be2 {[%clk 0:02:56]}  Be6 {[%clk 0:03:05]} 15. O-O {[%clk 0:02:55]}  O-O {[%clk 0:03:05]} 16. b3 {[%clk 0:02:47]}  Rc8 {[%clk 0:03:04]} 17. Qd3 {[%clk 0:02:47]}  Bxd5 {[%clk 0:03:02]} 18. cxd5 {[%clk 0:02:43]}  Nd4 {[%clk 0:03:02]} 19. Nxd4 {[%clk 0:02:42]}  exd4 {[%clk 0:03:03]} 20. Rac1 {[%clk 0:02:42]}  Rc3 {[%clk 0:03:02]} 21. Qd2 {[%clk 0:02:31]}  Re8 {[%clk 0:02:56]} 22. Bd3 {[%clk 0:02:31]}  Qc7 {[%clk 0:02:52]} 23. f4 {[%clk 0:02:28]}  Rc8 {[%clk 0:02:48]} 24. Rce1 {[%clk 0:02:28]}  a4 {[%clk 0:02:31]} 25. Bc4 {[%clk 0:02:10]}  g6 {[%clk 0:02:11]} 26. Qf2 {[%clk 0:01:02]}  Bg7 {[%clk 0:02:06]} 27. Qh4 {[%clk 0:00:47]}  Re8 {[%clk 0:02:01]} 28. e5 {[%clk 0:00:45]}  dxe5 {[%clk 0:01:56]} 29. d6 {[%clk 0:00:45]}  Qxd6 {[%clk 0:01:33]} 30. Bxf7+ {[%clk 0:00:44]}  Kf8 {[%clk 0:01:24]} 31. Bxe8 {[%clk 0:00:45]}  Kxe8 {[%clk 0:01:25]} 32. Qxh7 {[%clk 0:00:41]}  Rc7 {[%clk 0:01:14]} 33. fxe5 {[%clk 0:00:38]}  Bxe5 {[%clk 0:01:13]} 34. Qh8+ {[%clk 0:00:37]} 1-0


[Site "https://www.chess.com"]

[Event "Titled Tuesday Blitz June 1 2021"]
[White "TanitoluwaAps116"]
[Black "Stark, Lars"]
[BlackFideId "4676386"]
[WhiteElo "2390"]
[BlackElo "2474"]
[Result "0-1"]
[Round "04"]
[TimeControl "180+1"]
[Date "2021.06.01"]
[WhiteClock "0:00:06"]
[BlackClock "0:00:21"]

1. d4 {[%clk 0:03:00]}  Nf6 {[%clk 0:02:59]} 2. Bf4 {[%clk 0:03:00]}  e6 {[%clk 0:02:59]} 3. e3 {[%clk 0:03:00]}  c5 {[%clk 0:03:00]} 4. Nc3 {[%clk 0:02:58]}  a6 {[%clk 0:03:00]} 5. Nf3 {[%clk 0:02:58]}  d5 {[%clk 0:02:57]} 6. dxc5 {[%clk 0:02:41]}  Bxc5 {[%clk 0:02:55]} 7. Bd3 {[%clk 0:02:37]}  Nc6 {[%clk 0:02:44]} 8. e4 {[%clk 0:02:28]}  h6 {[%clk 0:02:38]} 9. O-O {[%clk 0:02:27]}  dxe4 {[%clk 0:02:30]} 10. Nxe4 {[%clk 0:02:28]}  Nxe4 {[%clk 0:02:31]} 11. Bxe4 {[%clk 0:02:29]}  Qxd1 {[%clk 0:02:32]} 12. Raxd1 {[%clk 0:02:30]}  Bd7 {[%clk 0:02:32]} 13. c3 {[%clk 0:02:28]}  O-O-O {[%clk 0:02:32]} 14. Rd2 {[%clk 0:02:15]}  Be8 {[%clk 0:02:14]} 15. Rfd1 {[%clk 0:02:07]}  Rxd2 {[%clk 0:02:13]} 16. Rxd2 {[%clk 0:02:08]}  f6 {[%clk 0:02:03]} 17. b4 {[%clk 0:01:56]}  Be7 {[%clk 0:01:56]} 18. Nd4 {[%clk 0:01:56]}  Nxd4 {[%clk 0:01:48]} 19. Rxd4 {[%clk 0:01:54]}  e5 {[%clk 0:01:38]} 20. Bf5+ {[%clk 0:01:17]}  Kc7 {[%clk 0:01:38]} 21. Bg3 {[%clk 0:01:13]}  Bd6 {[%clk 0:01:35]} 22. Rg4 {[%clk 0:01:10]}  g5 {[%clk 0:01:31]} 23. Rc4+ {[%clk 0:00:56]}  Bc6 {[%clk 0:01:08]} 24. Be4 {[%clk 0:00:55]}  Rd8 {[%clk 0:00:46]} 25. f3 {[%clk 0:00:51]}  Be7 {[%clk 0:00:46]} 26. Kf1 {[%clk 0:00:40]}  Rd2 {[%clk 0:00:44]} 27. a4 {[%clk 0:00:33]}  Kd7 {[%clk 0:00:42]} 28. Bf5+ {[%clk 0:00:17]}  Kd8 {[%clk 0:00:42]} 29. b5 {[%clk 0:00:15]}  axb5 {[%clk 0:00:43]} 30. axb5 {[%clk 0:00:16]}  Bxb5 {[%clk 0:00:43]} 31. Ke1 {[%clk 0:00:14]}  Bxc4 {[%clk 0:00:39]} 32. Kxd2 {[%clk 0:00:14]}  Bf1 {[%clk 0:00:38]} 33. Bh3 {[%clk 0:00:11]}  Bc5 {[%clk 0:00:37]} 34. Ke1 {[%clk 0:00:12]}  Bc4 {[%clk 0:00:37]} 35. Bf5 {[%clk 0:00:12]}  Kc7 {[%clk 0:00:36]} 36. h4 {[%clk 0:00:12]}  Kb6 {[%clk 0:00:36]} 37. hxg5 {[%clk 0:00:12]}  hxg5 {[%clk 0:00:35]} 38. Kd2 {[%clk 0:00:11]}  Ka5 {[%clk 0:00:35]} 39. Bd7 {[%clk 0:00:11]}  b5 {[%clk 0:00:34]} 40. Kc2 {[%clk 0:00:10]}  Ka4 {[%clk 0:00:34]} 41. Be1 {[%clk 0:00:09]}  Ka3 {[%clk 0:00:34]} 42. Bd2 {[%clk 0:00:09]}  Bf2 {[%clk 0:00:29]} 43. Bc1+ {[%clk 0:00:08]}  Ka4 {[%clk 0:00:28]} 44. Bd2 {[%clk 0:00:08]}  Ka5 {[%clk 0:00:28]} 45. Bf5 {[%clk 0:00:07]}  Kb6 {[%clk 0:00:28]} 46. g4 {[%clk 0:00:08]}  Kc5 {[%clk 0:00:28]} 47. Be4 {[%clk 0:00:08]}  Be2 {[%clk 0:00:25]} 48. Bc1 {[%clk 0:00:05]}  Bf1 {[%clk 0:00:23]} 49. Kb3 {[%clk 0:00:04]}  Bc4+ {[%clk 0:00:22]} 50. Kc2 {[%clk 0:00:04]}  Kd6 {[%clk 0:00:22]} 51. Ba3+ {[%clk 0:00:05]}  Bc5 {[%clk 0:00:22]} 52. Bf5 {[%clk 0:00:06]}  Bxa3 {[%clk 0:00:21]} 0-1


[Site "https://www.chess.com"]

[Event "Titled Tuesday Blitz June 1 2021"]
[White "Ter-Sahakyan, Samvel"]
[Black "Gormally, Daniel W"]
[WhiteFideId "13302531"]
[BlackFideId "406465"]
[WhiteElo "2551"]
[BlackElo "2543"]
[Result "0-1"]
[Round "04"]
[TimeControl "180+1"]
[Date "2021.06.01"]
[WhiteClock "0:00:02"]
[BlackClock "0:00:55"]

1. e4 {[%clk 0:03:00]}  c5 {[%clk 0:02:59]} 2. Nf3 {[%clk 0:03:00]}  d6 {[%clk 0:02:59]} 3. d4 {[%clk 0:03:00]}  cxd4 {[%clk 0:03:00]} 4. Nxd4 {[%clk 0:03:01]}  Nf6 {[%clk 0:03:00]} 5. Nc3 {[%clk 0:03:01]}  a6 {[%clk 0:03:01]} 6. Be3 {[%clk 0:02:54]}  e5 {[%clk 0:02:59]} 7. Nf3 {[%clk 0:02:52]}  Qc7 {[%clk 0:02:59]} 8. a4 {[%clk 0:02:51]}  b6 {[%clk 0:02:58]} 9. Nd5 {[%clk 0:02:12]}  Nxd5 {[%clk 0:02:56]} 10. exd5 {[%clk 0:02:12]}  Nd7 {[%clk 0:02:51]} 11. c4 {[%clk 0:02:07]}  a5 {[%clk 0:02:48]} 12. Be2 {[%clk 0:02:05]}  Be7 {[%clk 0:02:48]} 13. Nd2 {[%clk 0:02:04]}  O-O {[%clk 0:02:46]} 14. O-O {[%clk 0:01:58]}  f5 {[%clk 0:02:28]} 15. f3 {[%clk 0:01:58]}  Qd8 {[%clk 0:02:14]} 16. Nb1 {[%clk 0:01:46]}  Bg5 {[%clk 0:02:14]} 17. Qd2 {[%clk 0:01:46]}  Bxe3+ {[%clk 0:02:13]} 18. Qxe3 {[%clk 0:01:47]}  Nc5 {[%clk 0:02:13]} 19. Nc3 {[%clk 0:01:46]}  f4 {[%clk 0:02:03]} 20. Qf2 {[%clk 0:01:38]}  Bf5 {[%clk 0:02:03]} 21. Kh1 {[%clk 0:01:31]}  Rf6 {[%clk 0:02:03]} 22. Rg1 {[%clk 0:01:26]}  Rg6 {[%clk 0:01:42]} 23. g3 {[%clk 0:01:26]}  fxg3 {[%clk 0:01:41]} 24. Rxg3 {[%clk 0:01:26]}  Rxg3 {[%clk 0:01:39]} 25. Qxg3 {[%clk 0:01:19]}  Qf6 {[%clk 0:01:39]} 26. Re1 {[%clk 0:01:03]}  Rf8 {[%clk 0:01:35]} 27. Bf1 {[%clk 0:00:58]}  Qh6 {[%clk 0:01:30]} 28. Qf2 {[%clk 0:00:51]}  Bg4 {[%clk 0:01:26]} 29. Re3 {[%clk 0:00:33]}  e4 {[%clk 0:01:18]} 30. Be2 {[%clk 0:00:26]}  Qf4 {[%clk 0:01:03]} 31. b3 {[%clk 0:00:16]}  exf3 {[%clk 0:01:00]} 32. Bd1 {[%clk 0:00:16]}  Qd4 {[%clk 0:00:55]} 33. Bc2 {[%clk 0:00:02]}  Bh3 {[%clk 0:00:55]} 0-1


[Site "https://www.chess.com"]